[Event "Titled Tuesday Blitz February 14 Early 2023"]
[White "Panesar Vedant"]
[Black "Turzo, Attila"]
[WhiteFideId "35033018"]
[BlackFideId "704954"]
[WhiteElo "2387"]
[BlackElo "2279"]
[Result "1-0"]
[Round "11"]
[TimeControl "180+2"]
[Date "2023.02.14"]
[WhiteClock "0:00:29"]
[BlackClock "0:00:11"]

1. Nf3 {[%clk 0:03:00]}  Nf6 {[%clk 0:02:56]} 2. c4 {[%clk 0:03:01]}  g6 {[%clk 0:02:54]} 3. Nc3 {[%clk 0:03:00]}  Bg7 {[%clk 0:02:53]} 4. e4 {[%clk 0:03:00]}  e5 {[%clk 0:02:53]} 5. Be2 {[%clk 0:02:57]}  O-O {[%clk 0:02:49]} 6. O-O {[%clk 0:02:57]}  Re8 {[%clk 0:02:41]} 7. Re1 {[%clk 0:02:52]}  c5 {[%clk 0:02:40]} 8. a3 {[%clk 0:02:52]}  Nc6 {[%clk 0:02:37]} 9. Rb1 {[%clk 0:02:52]}  a5 {[%clk 0:02:36]} 10. d3 {[%clk 0:02:52]}  d6 {[%clk 0:02:31]} 11. Bg5 {[%clk 0:02:52]}  h6 {[%clk 0:02:31]} 12. Bxf6 {[%clk 0:02:50]}  Bxf6 {[%clk 0:02:30]} 13. Nd5 {[%clk 0:02:50]}  Bg7 {[%clk 0:02:28]} 14. Nd2 {[%clk 0:02:50]}  Be6 {[%clk 0:02:15]} 15. Bg4 {[%clk 0:02:49]}  Bxd5 {[%clk 0:02:08]} 16. cxd5 {[%clk 0:02:49]}  Nd4 {[%clk 0:02:02]} 17. Nb3 {[%clk 0:02:49]}  a4 {[%clk 0:01:49]} 18. Nxd4 {[%clk 0:02:48]}  exd4 {[%clk 0:01:50]} 19. f4 {[%clk 0:02:44]}  b5 {[%clk 0:01:47]} 20. Rc1 {[%clk 0:02:39]}  Rb8 {[%clk 0:01:42]} 21. Re2 {[%clk 0:02:20]}  h5 {[%clk 0:01:31]} 22. Bh3 {[%clk 0:02:19]}  Bh6 {[%clk 0:01:32]} 23. Rf2 {[%clk 0:02:18]}  Rb7 {[%clk 0:01:24]} 24. Rcc2 {[%clk 0:02:14]}  b4 {[%clk 0:01:23]} 25. axb4 {[%clk 0:02:11]}  Rxb4 {[%clk 0:01:22]} 26. g3 {[%clk 0:02:08]}  Qe7 {[%clk 0:01:15]} 27. Kg2 {[%clk 0:02:05]}  Reb8 {[%clk 0:01:15]} 28. g4 {[%clk 0:02:02]}  hxg4 {[%clk 0:01:14]} 29. Qxg4 {[%clk 0:02:02]}  Rb3 {[%clk 0:01:12]} 30. Rfd2 {[%clk 0:02:01]}  Qf6 {[%clk 0:01:09]} 31. Kg3 {[%clk 0:01:56]}  Kh7 {[%clk 0:01:03]} 32. Bf1 {[%clk 0:01:51]}  Re8 {[%clk 0:00:57]} 33. Rf2 {[%clk 0:01:49]}  Reb8 {[%clk 0:00:50]} 34. Kg2 {[%clk 0:01:44]}  Kg7 {[%clk 0:00:46]} 35. h4 {[%clk 0:01:37]}  Kf8 {[%clk 0:00:42]} 36. Kh3 {[%clk 0:01:23]}  R8b4 {[%clk 0:00:39]} 37. e5 {[%clk 0:01:06]}  dxe5 {[%clk 0:00:32]} 38. fxe5 {[%clk 0:01:05]}  Qxe5 {[%clk 0:00:29]} 39. Qxg6 {[%clk 0:01:02]}  Qe3+ {[%clk 0:00:26]} 40. Kg2 {[%clk 0:01:01]}  Rb7 {[%clk 0:00:22]} 41. Rce2 {[%clk 0:00:52]}  Qc1 {[%clk 0:00:16]} 42. d6 {[%clk 0:00:31]}  Bf4 {[%clk 0:00:15]} 43. Qf6 {[%clk 0:00:30]}  Be3 {[%clk 0:00:11]} 44. Qh8# {[%clk 0:00:29]} 1-0


[Site "https://www.chess.com"]

[Event "Titled Tuesday Blitz February 14 Early 2023"]
[White "surrenderPLS"]
[Black "Mohamed Anees M"]
[BlackFideId "35065815"]
[WhiteElo "2491"]
[BlackElo "2315"]
[Result "0-1"]
[Round "11"]
[TimeControl "180+2"]
[Date "2023.02.14"]
[WhiteClock "0:00:09"]
[BlackClock "0:00:18"]

1. e4 {[%clk 0:02:58]}  c5 {[%clk 0:02:59]} 2. Nf3 {[%clk 0:02:58]}  e6 {[%clk 0:02:59]} 3. d4 {[%clk 0:02:58]}  cxd4 {[%clk 0:02:59]} 4. Nxd4 {[%clk 0:02:57]}  Nc6 {[%clk 0:03:00]} 5. Nc3 {[%clk 0:02:56]}  Qc7 {[%clk 0:03:00]} 6. Be3 {[%clk 0:02:53]}  a6 {[%clk 0:03:00]} 7. g4 {[%clk 0:02:54]}  b5 {[%clk 0:02:58]} 8. Nxc6 {[%clk 0:02:48]}  dxc6 {[%clk 0:02:58]} 9. Bg2 {[%clk 0:02:46]}  e5 {[%clk 0:02:57]} 10. O-O {[%clk 0:02:46]}  Bd6 {[%clk 0:02:53]} 11. Qf3 {[%clk 0:02:42]}  Ne7 {[%clk 0:02:51]} 12. a4 {[%clk 0:02:36]}  b4 {[%clk 0:02:48]} 13. Nb1 {[%clk 0:02:36]}  O-O {[%clk 0:02:47]} 14. Nd2 {[%clk 0:02:35]}  Be6 {[%clk 0:02:47]} 15. Rfd1 {[%clk 0:02:32]}  Ng6 {[%clk 0:02:46]} 16. Bf1 {[%clk 0:02:30]}  Qa5 {[%clk 0:02:18]} 17. Nc4 {[%clk 0:02:25]}  Bxc4 {[%clk 0:02:17]} 18. Bxc4 {[%clk 0:02:26]}  Bc5 {[%clk 0:02:18]} 19. Rd7 {[%clk 0:02:21]}  Kh8 {[%clk 0:01:47]} 20. Rxf7 {[%clk 0:02:11]}  Rxf7 {[%clk 0:01:46]} 21. Bxf7 {[%clk 0:01:35]}  Rf8 {[%clk 0:01:43]} 22. Rd1 {[%clk 0:01:22]}  Bd4 {[%clk 0:01:17]} 23. Bxd4 {[%clk 0:01:11]}  exd4 {[%clk 0:01:18]} 24. Qf5 {[%clk 0:01:04]}  Qc7 {[%clk 0:01:11]} 25. Bxg6 {[%clk 0:00:51]}  Rxf5 {[%clk 0:01:09]} 26. Bxf5 {[%clk 0:00:51]}  g6 {[%clk 0:01:08]} 27. Be6 {[%clk 0:00:50]}  Qe5 {[%clk 0:01:08]} 28. Bb3 {[%clk 0:00:43]}  Qxe4 {[%clk 0:01:07]} 29. h3 {[%clk 0:00:43]}  a5 {[%clk 0:01:03]} 30. Rd3 {[%clk 0:00:42]}  c5 {[%clk 0:01:01]} 31. Kh2 {[%clk 0:00:38]}  Qf4+ {[%clk 0:01:00]} 32. Kg2 {[%clk 0:00:37]}  Qc1 {[%clk 0:01:01]} 33. Rf3 {[%clk 0:00:35]}  g5 {[%clk 0:00:51]} 34. Rf8+ {[%clk 0:00:18]}  Kg7 {[%clk 0:00:52]} 35. Rg8+ {[%clk 0:00:15]}  Kf6 {[%clk 0:00:31]} 36. Rf8+ {[%clk 0:00:15]}  Ke7 {[%clk 0:00:29]} 37. Rf7+ {[%clk 0:00:15]}  Ke8 {[%clk 0:00:30]} 38. Rxh7 {[%clk 0:00:13]}  Qxb2 {[%clk 0:00:20]} 39. Rh8+ {[%clk 0:00:12]}  Ke7 {[%clk 0:00:20]} 40. Rh7+ {[%clk 0:00:12]}  Kf8 {[%clk 0:00:20]} 41. Rf7+ {[%clk 0:00:11]}  Ke8 {[%clk 0:00:21]} 42. Rf5 {[%clk 0:00:12]}  d3 {[%clk 0:00:19]} 43. Re5+ {[%clk 0:00:11]}  Qxe5 {[%clk 0:00:18]} 44. cxd3 {[%clk 0:00:09]}  Qc3 {[%clk 0:00:18]} 0-1


[Site "https://www.chess.com"]

[Event "Titled Tuesday Blitz February 14 Early 2023"]
[White "Yurovskykh, Oleksandr"]
[Black "EREBUNI91"]
[WhiteFideId "14134020"]
[WhiteElo "2328"]
[BlackElo "2719"]
[Result "1/2-1/2"]
[Round "11"]
[TimeControl "180+2"]
[Date "2023.02.14"]
[WhiteClock "0:00:21"]
[BlackClock "0:00:07"]

1. d4 {[%clk 0:02:58]}  Nf6 {[%clk 0:02:58]} 2. Nf3 {[%clk 0:02:57]}  e6 {[%clk 0:02:56]} 3. Bf4 {[%clk 0:02:56]}  d5 {[%clk 0:02:56]} 4. e3 {[%clk 0:02:56]}  Bd6 {[%clk 0:02:55]} 5. Bg3 {[%clk 0:02:54]}  b6 {[%clk 0:02:55]} 6. c4 {[%clk 0:02:53]}  O-O {[%clk 0:02:53]} 7. cxd5 {[%clk 0:02:52]}  exd5 {[%clk 0:02:52]} 8. Nc3 {[%clk 0:02:52]}  c6 {[%clk 0:02:51]} 9. Bd3 {[%clk 0:02:52]}  Re8 {[%clk 0:02:40]} 10. Bxd6 {[%clk 0:02:48]}  Qxd6 {[%clk 0:02:40]} 11. O-O {[%clk 0:02:49]}  Ba6 {[%clk 0:02:22]} 12. Bxa6 {[%clk 0:02:40]}  Nxa6 {[%clk 0:02:21]} 13. Rc1 {[%clk 0:02:41]}  Nc7 {[%clk 0:02:15]} 14. Ne2 {[%clk 0:02:35]}  Ne6 {[%clk 0:02:13]} 15. Ng3 {[%clk 0:02:34]}  g6 {[%clk 0:01:39]} 16. Qa4 {[%clk 0:02:31]}  c5 {[%clk 0:01:33]} 17. dxc5 {[%clk 0:02:30]}  bxc5 {[%clk 0:01:29]} 18. Rfd1 {[%clk 0:02:28]}  Red8 {[%clk 0:01:23]} 19. e4 {[%clk 0:02:23]}  Qf4 {[%clk 0:01:11]} 20. Re1 {[%clk 0:01:52]}  dxe4 {[%clk 0:00:47]} 21. Nxe4 {[%clk 0:01:53]}  Nxe4 {[%clk 0:00:48]} 22. Qxe4 {[%clk 0:01:50]}  Rab8 {[%clk 0:00:47]} 23. b3 {[%clk 0:01:48]}  Rd6 {[%clk 0:00:41]} 24. g3 {[%clk 0:01:40]}  Qxe4 {[%clk 0:00:39]} 25. Rxe4 {[%clk 0:01:41]}  Rbd8 {[%clk 0:00:39]} 26. Ra4 {[%clk 0:01:41]}  R8d7 {[%clk 0:00:38]} 27. Kg2 {[%clk 0:01:38]}  Kg7 {[%clk 0:00:35]} 28. h4 {[%clk 0:01:29]}  Rc7 {[%clk 0:00:35]} 29. Rac4 {[%clk 0:01:23]}  Rcd7 {[%clk 0:00:33]} 30. R1c2 {[%clk 0:01:21]}  Rd1 {[%clk 0:00:33]} 31. Ra4 {[%clk 0:01:20]}  Ra1 {[%clk 0:00:29]} 32. Ne5 {[%clk 0:01:16]}  Rdd1 {[%clk 0:00:23]} 33. Nf3 {[%clk 0:00:46]}  Rd7 {[%clk 0:00:19]} 34. Ra6 {[%clk 0:00:45]}  h6 {[%clk 0:00:18]} 35. Re2 {[%clk 0:00:45]}  Nd4 {[%clk 0:00:17]} 36. Nxd4 {[%clk 0:00:45]}  cxd4 {[%clk 0:00:18]} 37. Rd2 {[%clk 0:00:45]}  d3 {[%clk 0:00:17]} 38. Kf3 {[%clk 0:00:46]}  Re1 {[%clk 0:00:17]} 39. b4 {[%clk 0:00:44]}  Re5 {[%clk 0:00:15]} 40. Ra3 {[%clk 0:00:43]}  Rf5+ {[%clk 0:00:15]} 41. Kg2 {[%clk 0:00:41]}  Rfd5 {[%clk 0:00:15]} 42. Rb3 {[%clk 0:00:42]}  Kf6 {[%clk 0:00:14]} 43. a4 {[%clk 0:00:42]}  Ke5 {[%clk 0:00:14]} 44. Kf3 {[%clk 0:00:40]}  Kf6 {[%clk 0:00:14]} 45. b5 {[%clk 0:00:40]}  Rf5+ {[%clk 0:00:14]} 46. Kg2 {[%clk 0:00:39]}  Rfd5 {[%clk 0:00:14]} 47. a5 {[%clk 0:00:39]}  Ke5 {[%clk 0:00:14]} 48. b6 {[%clk 0:00:38]}  axb6 {[%clk 0:00:15]} 49. axb6 {[%clk 0:00:39]}  Rb7 {[%clk 0:00:14]} 50. Kf3 {[%clk 0:00:37]}  Rd6 {[%clk 0:00:14]} 51. Rdxd3 {[%clk 0:00:34]}  Rxd3+ {[%clk 0:00:15]} 52. Rxd3 {[%clk 0:00:35]}  Rxb6 {[%clk 0:00:16]} 53. Rd7 {[%clk 0:00:35]}  Kf6 {[%clk 0:00:16]} 54. Ra7 {[%clk 0:00:33]}  h5 {[%clk 0:00:16]} 55. Ra3 {[%clk 0:00:32]}  Rb4 {[%clk 0:00:17]} 56. Rc3 {[%clk 0:00:33]}  Kg7 {[%clk 0:00:17]} 57. Rd3 {[%clk 0:00:33]}  Rb5 {[%clk 0:00:17]} 58. Re3 {[%clk 0:00:34]}  Rf5+ {[%clk 0:00:18]} 59. Kg2 {[%clk 0:00:34]}  f6 {[%clk 0:00:19]} 60. Rf3 {[%clk 0:00:34]}  Rd5 {[%clk 0:00:18]} 61. Ra3 {[%clk 0:00:34]}  Kf7 {[%clk 0:00:18]} 62. Ra4 {[%clk 0:00:34]}  Ke6 {[%clk 0:00:18]} 63. Kf3 {[%clk 0:00:35]}  Rd6 {[%clk 0:00:17]} 64. Re4+ {[%clk 0:00:33]}  Kf7 {[%clk 0:00:17]} 65. Re3 {[%clk 0:00:34]}  Re6 {[%clk 0:00:17]} 66. Rxe6 {[%clk 0:00:33]}  Kxe6 {[%clk 0:00:18]} 67. Ke4 {[%clk 0:00:34]}  g5 {[%clk 0:00:18]} 68. f3 {[%clk 0:00:24]}  f5+ {[%clk 0:00:17]} 69. Kd4 {[%clk 0:00:18]}  f4 {[%clk 0:00:14]} 70. gxf4 {[%clk 0:00:16]}  gxh4 {[%clk 0:00:13]} 71. Ke3 {[%clk 0:00:17]}  Kf5 {[%clk 0:00:13]} 72. Kf2 {[%clk 0:00:17]}  Kxf4 {[%clk 0:00:14]} 73. Kg2 {[%clk 0:00:18]}  Kf5 {[%clk 0:00:14]} 74. Kh3 {[%clk 0:00:18]}  Kg5 {[%clk 0:00:15]} 75. f4+ {[%clk 0:00:19]}  Kxf4 {[%clk 0:00:16]} 76. Kxh4 {[%clk 0:00:20]}  Ke5 {[%clk 0:00:07]} 77. Kxh5 {[%clk 0:00:21]} 1/2-1/2


[Site "https://www.chess.com"]

[Event "Titled Tuesday Blitz February 14 Early 2023"]
[White "Starozhilov, Leonid"]
[Black "Pinheiro, Iung Alicio de O."]
[WhiteFideId "14106752"]
[BlackFideId "2104350"]
[WhiteElo "2313"]
[BlackElo "2306"]
[Result "1-0"]
[Round "11"]
[TimeControl "180+2"]
[Date "2023.02.14"]
[WhiteClock "0:00:47"]
[BlackClock "0:00:18"]

1. e4 {[%clk 0:03:00]}  c5 {[%clk 0:02:59]} 2. Nf3 {[%clk 0:03:01]}  Nc6 {[%clk 0:02:59]} 3. Bb5 {[%clk 0:03:01]}  e5 {[%clk 0:02:58]} 4. O-O {[%clk 0:03:00]}  Bd6 {[%clk 0:02:57]} 5. Bxc6 {[%clk 0:02:55]}  dxc6 {[%clk 0:02:57]} 6. d3 {[%clk 0:02:55]}  Ne7 {[%clk 0:02:53]} 7. a4 {[%clk 0:02:55]}  a5 {[%clk 0:02:44]} 8. Na3 {[%clk 0:02:50]}  Ng6 {[%clk 0:02:43]} 9. Nc4 {[%clk 0:02:50]}  Bc7 {[%clk 0:02:43]} 10. h3 {[%clk 0:02:48]}  O-O {[%clk 0:02:43]} 11. Be3 {[%clk 0:02:47]}  b6 {[%clk 0:02:43]} 12. b3 {[%clk 0:02:44]}  h6 {[%clk 0:02:22]} 13. Nh2 {[%clk 0:02:38]}  f5 {[%clk 0:02:20]} 14. exf5 {[%clk 0:02:37]}  Bxf5 {[%clk 0:02:20]} 15. Re1 {[%clk 0:02:29]}  Nh4 {[%clk 0:01:59]} 16. f3 {[%clk 0:01:49]}  h5 {[%clk 0:01:36]} 17. Qd2 {[%clk 0:01:42]}  Qd7 {[%clk 0:01:25]} 18. Bg5 {[%clk 0:01:29]}  Ng6 {[%clk 0:01:24]} 19. h4 {[%clk 0:01:19]}  Rf7 {[%clk 0:00:59]} 20. Nf1 {[%clk 0:01:13]}  Raf8 {[%clk 0:00:56]} 21. Ng3 {[%clk 0:01:13]}  Bd8 {[%clk 0:00:46]} 22. Ne4 {[%clk 0:01:04]}  Be6 {[%clk 0:00:26]} 23. Bxd8 {[%clk 0:00:56]}  Qxd8 {[%clk 0:00:27]} 24. Qg5 {[%clk 0:00:53]}  Bxc4 {[%clk 0:00:18]} 25. Qxg6 {[%clk 0:00:47]} 1-0


[Site "https://www.chess.com"]

[Event "Titled Tuesday Blitz February 14 Early 2023"]
[White "Petukhov, Dmitry"]
[Black "Domingo Nunez, Ruben"]
[WhiteFideId "4142748"]
[BlackFideId "22245570"]
[WhiteElo "2350"]
[BlackElo "2416"]
[Result "1-0"]
[Round "11"]
[TimeControl "180+2"]
[Date "2023.02.14"]
[WhiteClock "0:01:15"]
[BlackClock "0:00:18"]

1. e4 {[%clk 0:03:00]}  g6 {[%clk 0:02:53]} 2. h4 {[%clk 0:02:59]}  Bg7 {[%clk 0:02:53]} 3. h5 {[%clk 0:02:59]}  d5 {[%clk 0:02:54]} 4. Nc3 {[%clk 0:02:51]}  dxe4 {[%clk 0:02:52]} 5. Nxe4 {[%clk 0:02:50]}  Qd5 {[%clk 0:02:52]} 6. d3 {[%clk 0:02:48]}  Nc6 {[%clk 0:02:52]} 7. h6 {[%clk 0:02:45]}  Be5 {[%clk 0:02:49]} 8. Nf3 {[%clk 0:02:44]}  Bg4 {[%clk 0:02:50]} 9. Be2 {[%clk 0:02:44]}  Nf6 {[%clk 0:02:38]} 10. Nxe5 {[%clk 0:02:22]}  Bxe2 {[%clk 0:02:38]} 11. Nxf6+ {[%clk 0:02:05]}  exf6 {[%clk 0:02:38]} 12. Qxe2 {[%clk 0:02:01]}  fxe5 {[%clk 0:02:38]} 13. Qe4 {[%clk 0:01:59]}  Qxe4+ {[%clk 0:02:33]} 14. dxe4 {[%clk 0:02:00]}  Nd4 {[%clk 0:02:34]} 15. Kd2 {[%clk 0:01:51]}  O-O-O {[%clk 0:02:33]} 16. Kc3 {[%clk 0:01:49]}  Rd6 {[%clk 0:02:19]} 17. Be3 {[%clk 0:01:38]}  Rc6+ {[%clk 0:02:19]} 18. Kd3 {[%clk 0:01:38]}  Rd8 {[%clk 0:01:25]} 19. Bxd4 {[%clk 0:01:38]}  Rxd4+ {[%clk 0:01:24]} 20. Ke3 {[%clk 0:01:39]}  Rxc2 {[%clk 0:01:25]} 21. f4 {[%clk 0:01:38]}  Rcc4 {[%clk 0:01:14]} 22. fxe5 {[%clk 0:01:34]}  Rxe4+ {[%clk 0:01:15]} 23. Kd3 {[%clk 0:01:34]}  Rcd4+ {[%clk 0:01:14]} 24. Kc3 {[%clk 0:01:35]}  Rd5 {[%clk 0:01:13]} 25. Raf1 {[%clk 0:01:31]}  Re3+ {[%clk 0:00:47]} 26. Kc4 {[%clk 0:01:27]}  c6 {[%clk 0:00:19]} 27. Rxf7 {[%clk 0:01:26]}  a5 {[%clk 0:00:20]} 28. a4 {[%clk 0:01:22]}  Rdxe5 {[%clk 0:00:20]} 29. Rxh7 {[%clk 0:01:21]}  b6 {[%clk 0:00:20]} 30. Rh4 {[%clk 0:01:18]}  Re2 {[%clk 0:00:19]} 31. Rf4 {[%clk 0:01:16]}  Rh5 {[%clk 0:00:18]} 32. Rf8+ {[%clk 0:01:15]} 1-0


[Site "https://www.chess.com"]

[Event "Titled Tuesday Blitz February 14 Early 2023"]
[White "Tan, Jun Ying"]
[Black "Jaskolka, Tomasz"]
[WhiteFideId "5710413"]
[BlackFideId "1170791"]
[WhiteElo "2307"]
[BlackElo "2238"]
[Result "1-0"]
[Round "11"]
[TimeControl "180+2"]
[Date "2023.02.14"]
[WhiteClock "0:00:18"]
[BlackClock "0:00:10"]

1. d4 {[%clk 0:03:00]}  d5 {[%clk 0:02:59]} 2. c4 {[%clk 0:03:01]}  e5 {[%clk 0:03:00]} 3. dxe5 {[%clk 0:03:01]}  d4 {[%clk 0:03:00]} 4. Nf3 {[%clk 0:03:01]}  Nc6 {[%clk 0:03:01]} 5. a3 {[%clk 0:03:02]}  a5 {[%clk 0:02:56]} 6. e3 {[%clk 0:02:59]}  Bc5 {[%clk 0:02:51]} 7. exd4 {[%clk 0:02:55]}  Bxd4 {[%clk 0:02:48]} 8. Nxd4 {[%clk 0:02:51]}  Qxd4 {[%clk 0:02:48]} 9. Nc3 {[%clk 0:02:48]}  Qxd1+ {[%clk 0:02:45]} 10. Kxd1 {[%clk 0:02:47]}  Nxe5 {[%clk 0:02:28]} 11. Nd5 {[%clk 0:02:45]}  Bg4+ {[%clk 0:01:59]} 12. f3 {[%clk 0:02:39]}  Rd8 {[%clk 0:01:57]} 13. fxg4 {[%clk 0:02:17]}  c6 {[%clk 0:01:57]} 14. Bf4 {[%clk 0:01:49]}  Ng6 {[%clk 0:01:56]} 15. Bg3 {[%clk 0:01:42]}  cxd5 {[%clk 0:01:56]} 16. Kc2 {[%clk 0:01:37]}  N8e7 {[%clk 0:01:41]} 17. cxd5 {[%clk 0:01:16]}  Rxd5 {[%clk 0:01:26]} 18. Bc4 {[%clk 0:01:07]}  Rd4 {[%clk 0:01:03]} 19. Bb5+ {[%clk 0:01:07]}  Nc6 {[%clk 0:00:53]} 20. Rhe1+ {[%clk 0:01:06]}  Kd8 {[%clk 0:00:52]} 21. Rad1 {[%clk 0:01:03]}  Rxd1 {[%clk 0:00:47]} 22. Rxd1+ {[%clk 0:01:03]}  Kc8 {[%clk 0:00:48]} 23. Bxc6 {[%clk 0:00:54]}  bxc6 {[%clk 0:00:48]} 24. Rd6 {[%clk 0:00:54]}  Ne7 {[%clk 0:00:38]} 25. Be1 {[%clk 0:00:51]}  Kc7 {[%clk 0:00:30]} 26. Rd4 {[%clk 0:00:51]}  Ra8 {[%clk 0:00:24]} 27. Ra4 {[%clk 0:00:41]}  Kb6 {[%clk 0:00:24]} 28. b4 {[%clk 0:00:39]}  Nd5 {[%clk 0:00:20]} 29. bxa5+ {[%clk 0:00:39]}  Kb5 {[%clk 0:00:20]} 30. Re4 {[%clk 0:00:36]}  Ra7 {[%clk 0:00:11]} 31. g5 {[%clk 0:00:34]}  Re7 {[%clk 0:00:11]} 32. Rxe7 {[%clk 0:00:31]}  Nxe7 {[%clk 0:00:12]} 33. Kd3 {[%clk 0:00:30]}  Nd5 {[%clk 0:00:10]} 34. g3 {[%clk 0:00:27]}  Nc7 {[%clk 0:00:09]} 35. Bc3 {[%clk 0:00:26]}  g6 {[%clk 0:00:08]} 36. Ke4 {[%clk 0:00:25]}  Ne6 {[%clk 0:00:09]} 37. h4 {[%clk 0:00:24]}  Nc5+ {[%clk 0:00:06]} 38. Ke5 {[%clk 0:00:23]}  Nd7+ {[%clk 0:00:07]} 39. Kd6 {[%clk 0:00:23]}  Nc5 {[%clk 0:00:07]} 40. Ke7 {[%clk 0:00:21]}  Ne4 {[%clk 0:00:07]} 41. Be1 {[%clk 0:00:21]}  c5 {[%clk 0:00:07]} 42. Kxf7 {[%clk 0:00:20]}  c4 {[%clk 0:00:06]} 43. Kg7 {[%clk 0:00:20]}  Nd6 {[%clk 0:00:01]} 44. Kxh7 {[%clk 0:00:18]}  Ne4 {[%clk 0:00:02]} 45. Kxg6 {[%clk 0:00:17]}  Nc5 {[%clk 0:00:02]} 46. h5 {[%clk 0:00:16]}  Nd3 {[%clk 0:00:03]} 47. Bc3 {[%clk 0:00:15]}  Nc5 {[%clk 0:00:03]} 48. h6 {[%clk 0:00:15]}  Ne4 {[%clk 0:00:04]} 49. Be1 {[%clk 0:00:16]}  c3 {[%clk 0:00:03]} 50. Bxc3 {[%clk 0:00:15]}  Nxc3 {[%clk 0:00:04]} 51. h7 {[%clk 0:00:16]}  Nd5 {[%clk 0:00:05]} 52. h8=Q {[%clk 0:00:16]}  Kxa5 {[%clk 0:00:06]} 53. Qa8+ {[%clk 0:00:16]}  Kb5 {[%clk 0:00:06]} 54. Qxd5+ {[%clk 0:00:16]}  Ka4 {[%clk 0:00:07]} 55. Kf6 {[%clk 0:00:16]}  Kxa3 {[%clk 0:00:07]} 56. g6 {[%clk 0:00:17]}  Kb4 {[%clk 0:00:08]} 57. g7 {[%clk 0:00:17]}  Ka3 {[%clk 0:00:09]} 58. g8=Q {[%clk 0:00:17]}  Kb2 {[%clk 0:00:09]} 59. Qb3+ {[%clk 0:00:17]}  Kc1 {[%clk 0:00:09]} 60. Qgc4+ {[%clk 0:00:17]}  Kd2 {[%clk 0:00:09]} 61. Qbd3+ {[%clk 0:00:18]}  Ke1 {[%clk 0:00:10]} 62. Qe2# {[%clk 0:00:18]} 1-0


[Site "https://www.chess.com"]

[Event "Titled Tuesday Blitz February 14 Early 2023"]
[White "Vlassov, Nikolai"]
[Black "Ramirez Allo, Eduardo"]
[WhiteFideId "4103360"]
[BlackFideId "2224178"]
[WhiteElo "2283"]
[BlackElo "2274"]
[Result "1-0"]
[Round "11"]
[TimeControl "180+2"]
[Date "2023.02.14"]
[WhiteClock "0:00:50"]
[BlackClock "0:00:02"]

1. e4 {[%clk 0:03:00]}  c5 {[%clk 0:03:00]} 2. c3 {[%clk 0:03:00]}  d5 {[%clk 0:02:59]} 3. exd5 {[%clk 0:03:00]}  Qxd5 {[%clk 0:03:00]} 4. d4 {[%clk 0:03:00]}  Nc6 {[%clk 0:03:00]} 5. Nf3 {[%clk 0:02:59]}  Bg4 {[%clk 0:03:00]} 6. Be2 {[%clk 0:02:57]}  Nf6 {[%clk 0:02:59]} 7. dxc5 {[%clk 0:02:42]}  Qxc5 {[%clk 0:02:50]} 8. Be3 {[%clk 0:02:40]}  Qa5 {[%clk 0:02:50]} 9. Qb3 {[%clk 0:02:36]}  Qc7 {[%clk 0:02:47]} 10. Na3 {[%clk 0:02:30]}  e6 {[%clk 0:02:29]} 11. Nb5 {[%clk 0:02:27]}  Qa5 {[%clk 0:02:23]} 12. O-O-O {[%clk 0:02:21]}  Nd5 {[%clk 0:02:12]} 13. Rxd5 {[%clk 0:01:59]}  exd5 {[%clk 0:02:11]} 14. Bf4 {[%clk 0:01:59]}  O-O-O {[%clk 0:01:58]} 15. Bc7 {[%clk 0:01:56]}  Qxc7 {[%clk 0:01:31]} 16. Nxc7 {[%clk 0:01:54]}  Kxc7 {[%clk 0:01:32]} 17. Rd1 {[%clk 0:01:51]}  Be6 {[%clk 0:01:28]} 18. Ng5 {[%clk 0:01:48]}  Bc5 {[%clk 0:01:22]} 19. Nxe6+ {[%clk 0:01:40]}  fxe6 {[%clk 0:01:23]} 20. Qa4 {[%clk 0:01:37]}  Rhf8 {[%clk 0:01:14]} 21. f3 {[%clk 0:01:36]}  h6 {[%clk 0:01:00]} 22. Qg4 {[%clk 0:01:30]}  Rde8 {[%clk 0:00:29]} 23. Qxg7+ {[%clk 0:01:28]}  Kb8 {[%clk 0:00:30]} 24. Qxh6 {[%clk 0:01:26]}  Rh8 {[%clk 0:00:30]} 25. Qd2 {[%clk 0:01:24]}  Ne5 {[%clk 0:00:18]} 26. Kb1 {[%clk 0:01:21]}  Bd6 {[%clk 0:00:10]} 27. c4 {[%clk 0:01:16]}  Bc7 {[%clk 0:00:10]} 28. cxd5 {[%clk 0:01:16]}  exd5 {[%clk 0:00:10]} 29. h3 {[%clk 0:01:14]}  Rd8 {[%clk 0:00:08]} 30. Bd3 {[%clk 0:01:08]}  d4 {[%clk 0:00:08]} 31. Be4 {[%clk 0:01:07]}  Rd6 {[%clk 0:00:06]} 32. b3 {[%clk 0:01:01]}  Rhd8 {[%clk 0:00:06]} 33. h4 {[%clk 0:01:00]}  Bb6 {[%clk 0:00:02]} 34. h5 {[%clk 0:01:00]}  d3 {[%clk 0:00:03]} 35. h6 {[%clk 0:00:58]}  Bc5 {[%clk 0:00:02]} 36. h7 {[%clk 0:00:58]}  b6 {[%clk 0:00:02]} 37. Qg5 {[%clk 0:00:55]}  Nf7 {[%clk 0:00:02]} 38. Qe7 {[%clk 0:00:51]}  Nh8 {[%clk 0:00:02]} 39. Qb7# {[%clk 0:00:50]} 1-0


[Site "https://www.chess.com"]